[Event "*** SCC Grand Prix: Titled Tuesday Blitz"]
[Site "Chess.com"]
[Date "2020.07.14"]
[Round "2"]
[White "penguingm1"]
[Black "goodluck06"]
[Result "1-0"]
[WhiteElo "2947"]
[BlackElo "2560"]
[TimeControl "180+1"]
[EndTime "10:17:24 PDT"]
[Termination "penguingm1 won by resignation"]

1. d4 {[%clk 0:03:00.9]} 1... Nf6 {[%clk 0:02:59.6]} 2. c4 {[%clk 0:03:01.2]}
2... e6 {[%clk 0:02:58.8]} 3. Nc3 {[%clk 0:02:58.6]} 3... Bb4 {[%clk 0:02:55.9]}
4. Qc2 {[%clk 0:02:56.4]} 4... O-O {[%clk 0:02:52.4]} 5. Nf3 {[%clk 0:02:56.5]}
5... d6 {[%clk 0:02:50.7]} 6. g3 {[%clk 0:02:56.5]} 6... b6 {[%clk 0:02:49.6]}
7. Bg2 {[%clk 0:02:55]} 7... Bb7 {[%clk 0:02:50.2]} 8. O-O {[%clk 0:02:55.3]}
8... Bxc3 {[%clk 0:02:47]} 9. Qxc3 {[%clk 0:02:56.2]} 9... Nbd7 {[%clk
0:02:46.8]} 10. b4 {[%clk 0:02:56.6]} 10... a5 {[%clk 0:02:37.1]} 11. b5 {[%clk
0:02:56.6]} 11... Ne4 {[%clk 0:02:35.3]} 12. Qc2 {[%clk 0:02:56.2]} 12... f5
{[%clk 0:02:34.7]} 13. Ng5 {[%clk 0:02:52.6]} 13... Qf6 {[%clk 0:02:07.9]} 14.
Nxe4 {[%clk 0:02:51.6]} 14... Qxd4 {[%clk 0:02:03.2]} 15. Nf6+ {[%clk 0:01:37]}
15... Nxf6 {[%clk 0:01:43.8]} 16. Bxb7 {[%clk 0:01:36.1]} 16... Qxa1 {[%clk
0:01:43.3]} 17. Bxa8 {[%clk 0:01:34.3]} 17... Rxa8 {[%clk 0:01:41]} 18. Bb2
{[%clk 0:01:34]} 18... Qxa2 {[%clk 0:01:39.6]} 19. Ra1 {[%clk 0:01:33.9]} 19...
Qxa1+ {[%clk 0:01:39.9]} 20. Bxa1 {[%clk 0:01:34.8]} 20... a4 {[%clk 0:01:31.5]}
21. f3 {[%clk 0:01:26]} 21... a3 {[%clk 0:01:30.3]} 22. g4 {[%clk 0:01:26.3]}
22... fxg4 {[%clk 0:01:27.5]} 23. fxg4 {[%clk 0:01:26.6]} 23... e5 {[%clk
0:00:56.4]} 24. g5 {[%clk 0:01:23.1]} 24... Nd7 {[%clk 0:00:54.6]} 25. Qe4
{[%clk 0:01:21.9]} 25... Ra7 {[%clk 0:00:52.9]} 26. Qc6 {[%clk 0:01:21.5]} 26...
Nf8 {[%clk 0:00:50.7]} 27. h4 {[%clk 0:01:19.3]} 27... g6 {[%clk 0:00:48.3]} 28.
c5 {[%clk 0:01:12.4]} 28... bxc5 {[%clk 0:00:39.3]} 29. b6 {[%clk 0:01:11.9]}
29... cxb6 {[%clk 0:00:33.4]} 30. Qxd6 {[%clk 0:01:12.2]} 30... a2 {[%clk
0:00:30.6]} 31. Qxe5 {[%clk 0:01:06.6]} 31... Rd7 {[%clk 0:00:25.2]} 32. Kg2
{[%clk 0:00:58.1]} 32... Kf7 {[%clk 0:00:22.5]} 33. Qf4+ {[%clk 0:00:56.6]}
33... Ke8 {[%clk 0:00:21.5]} 34. Qe4+ {[%clk 0:00:56.8]} 34... Re7 {[%clk
0:00:20.2]} 35. Qa8+ {[%clk 0:00:57.2]} 35... Kf7 {[%clk 0:00:20.4]} 36. Qxa2+
{[%clk 0:00:57.6]} 36... Ne6 {[%clk 0:00:20.3]} 37. Qd5 {[%clk 0:00:55.4]} 37...
Ke8 {[%clk 0:00:17.9]} 38. Be5 {[%clk 0:00:55.2]} 38... b5 {[%clk 0:00:14.7]}
39. Qc6+ {[%clk 0:00:54.5]} 39... Kf7 {[%clk 0:00:14.8]} 40. Qxb5 {[%clk
0:00:54.8]} 40... Nf8 {[%clk 0:00:14]} 41. Qxc5 {[%clk 0:00:53.5]} 41... Nd7
{[%clk 0:00:13.8]} 42. Qc4+ {[%clk 0:00:54]} 42... Ke8 {[%clk 0:00:13.7]} 43.
Qg8+ {[%clk 0:00:53.4]} 43... Nf8 {[%clk 0:00:13.5]} 44. Bd6 {[%clk 0:00:53.3]}
1-0

[Event "*** SCC Grand Prix: Titled Tuesday Blitz"]
[Site "Chess.com"]
[Date "2020.07.14"]
[Round "2"]
[White "manitodeplomo"]
[Black "Igor_Lysyj"]
[Result "0-1"]
[WhiteElo "2511"]
[BlackElo "2810"]
[TimeControl "180+1"]
[EndTime "10:17:24 PDT"]
[Termination "Igor_Lysyj won by resignation"]

1. d4 {[%clk 0:02:56.5]} 1... d5 {[%clk 0:02:59.3]} 2. c4 {[%clk 0:02:55.9]}
2... e6 {[%clk 0:02:59.4]} 3. Nf3 {[%clk 0:02:56.3]} 3... dxc4 {[%clk
0:02:59.6]} 4. e3 {[%clk 0:02:55.7]} 4... Nf6 {[%clk 0:02:59.6]} 5. Bxc4 {[%clk
0:02:56.1]} 5... c5 {[%clk 0:02:59.8]} 6. Nc3 {[%clk 0:02:56.5]} 6... cxd4
{[%clk 0:02:58.5]} 7. exd4 {[%clk 0:02:57.4]} 7... Be7 {[%clk 0:02:58.6]} 8. O-O
{[%clk 0:02:57.9]} 8... O-O {[%clk 0:02:58.7]} 9. Bg5 {[%clk 0:02:58.3]} 9... h6
{[%clk 0:02:57.5]} 10. Bh4 {[%clk 0:02:56.3]} 10... Nc6 {[%clk 0:02:57.6]} 11.
a3 {[%clk 0:02:54.9]} 11... Nh5 {[%clk 0:02:57.2]} 12. Bg3 {[%clk 0:02:49.9]}
12... Nxg3 {[%clk 0:02:56.3]} 13. hxg3 {[%clk 0:02:50.8]} 13... Bf6 {[%clk
0:02:56.2]} 14. Ne2 {[%clk 0:02:48.6]} 14... b6 {[%clk 0:02:50.9]} 15. Rc1
{[%clk 0:02:40]} 15... Bb7 {[%clk 0:02:50.4]} 16. Qd3 {[%clk 0:02:25.3]} 16...
Qd6 {[%clk 0:02:42.2]} 17. Rfd1 {[%clk 0:02:23.3]} 17... Rfd8 {[%clk 0:02:16.9]}
18. b4 {[%clk 0:02:16.1]} 18... Rd7 {[%clk 0:02:00.9]} 19. d5 {[%clk 0:02:07.5]}
19... Ne5 {[%clk 0:01:57.7]} 20. Nxe5 {[%clk 0:01:27.5]} 20... Qxe5 {[%clk
0:01:57.3]} 21. f4 {[%clk 0:01:24.7]} 21... Qh5 {[%clk 0:01:35.7]} 22. Qf3
{[%clk 0:01:11.9]} 22... Qxf3 {[%clk 0:01:34]} 23. gxf3 {[%clk 0:01:12.8]} 23...
exd5 {[%clk 0:01:30.4]} 24. Bb5 {[%clk 0:01:11.7]} 24... Re7 {[%clk 0:01:30.3]}
25. Kf2 {[%clk 0:01:07.2]} 25... Bb2 {[%clk 0:01:15.3]} 26. Rb1 {[%clk
0:01:04.4]} 26... Bf6 {[%clk 0:01:13.5]} 27. Rbc1 {[%clk 0:01:03.6]} 27... Rd8
{[%clk 0:00:45.9]} 28. Nd4 {[%clk 0:00:58.9]} 28... Bxd4+ {[%clk 0:00:45.5]} 29.
Rxd4 {[%clk 0:00:59.3]} 29... g6 {[%clk 0:00:45.3]} 30. g4 {[%clk 0:00:57.1]}
30... Kg7 {[%clk 0:00:44.6]} 31. Ba4 {[%clk 0:00:55.1]} 31... g5 {[%clk
0:00:43.4]} 32. fxg5 {[%clk 0:00:48]} 32... hxg5 {[%clk 0:00:42.9]} 33. Bb3
{[%clk 0:00:48.9]} 33... Rd6 {[%clk 0:00:41.4]} 34. Rcd1 {[%clk 0:00:47.9]}
34... Rc7 {[%clk 0:00:39.3]} 35. Ke3 {[%clk 0:00:39.7]} 35... Rc3+ {[%clk
0:00:37.9]} 36. R4d3 {[%clk 0:00:39.3]} 36... Rxd3+ {[%clk 0:00:37]} 37. Rxd3
{[%clk 0:00:38]} 37... d4+ {[%clk 0:00:37.2]} 38. Kf2 {[%clk 0:00:35.6]} 38...
Kf6 {[%clk 0:00:36.7]} 39. Kg3 {[%clk 0:00:35]} 39... Ba6 {[%clk 0:00:34.5]} 40.
Rd1 {[%clk 0:00:33.6]} 40... d3 {[%clk 0:00:34.8]} 41. f4 {[%clk 0:00:34]} 41...
Rd4 {[%clk 0:00:33.3]} 0-1

[Event "*** SCC Grand Prix: Titled Tuesday Blitz"]
[Site "Chess.com"]
[Date "2020.07.14"]
[Round "2"]
[White "Maghalashvili"]
[Black "Shuvalov"]
[Result "1-0"]
[WhiteElo "2768"]
[BlackElo "2487"]
[TimeControl "180+1"]
[EndTime "10:17:29 PDT"]
[Termination "Maghalashvili won by resignation"]

1. Nf3 {[%clk 0:03:00.9]} 1... d5 {[%clk 0:02:46.5]} 2. g3 {[%clk 0:03:00.5]}
2... Nf6 {[%clk 0:02:45.7]} 3. Bg2 {[%clk 0:02:59.9]} 3... Bf5 {[%clk
0:02:44.2]} 4. O-O {[%clk 0:03:00.8]} 4... e6 {[%clk 0:02:44.6]} 5. d3 {[%clk
0:03:00.9]} 5... Be7 {[%clk 0:02:43.6]} 6. Nbd2 {[%clk 0:03:01.5]} 6... O-O
{[%clk 0:02:43]} 7. Qe1 {[%clk 0:03:01.3]} 7... h6 {[%clk 0:02:42.6]} 8. e4
{[%clk 0:03:01.3]} 8... Bh7 {[%clk 0:02:42.6]} 9. b3 {[%clk 0:03:01.7]} 9... c5
{[%clk 0:02:42.1]} 10. Ne5 {[%clk 0:02:58.6]} 10... Nc6 {[%clk 0:02:41.9]} 11.
Nxc6 {[%clk 0:02:58.2]} 11... bxc6 {[%clk 0:02:41.9]} 12. Bb2 {[%clk 0:02:56.5]}
12... a5 {[%clk 0:02:41]} 13. a4 {[%clk 0:02:56.6]} 13... Rb8 {[%clk 0:02:30.1]}
14. h3 {[%clk 0:02:52.8]} 14... c4 {[%clk 0:01:58.7]} 15. dxc4 {[%clk
0:02:50.7]} 15... d4 {[%clk 0:01:59.1]} 16. e5 {[%clk 0:02:42.8]} 16... Ne8
{[%clk 0:01:55.8]} 17. Be4 {[%clk 0:02:37.9]} 17... c5 {[%clk 0:01:52.2]} 18. f4
{[%clk 0:02:34.4]} 18... Nc7 {[%clk 0:01:46.4]} 19. Bxh7+ {[%clk 0:02:33.2]}
19... Kxh7 {[%clk 0:01:45.8]} 20. Qe4+ {[%clk 0:02:33.7]} 20... Kg8 {[%clk
0:01:45.8]} 21. Nf3 {[%clk 0:02:33.5]} 21... Rb6 {[%clk 0:01:43.1]} 22. Ba3
{[%clk 0:02:32.9]} 22... Na6 {[%clk 0:01:42.8]} 23. Kh2 {[%clk 0:02:31.5]} 23...
Qd7 {[%clk 0:01:39.9]} 24. Ne1 {[%clk 0:02:30.5]} 24... Rd8 {[%clk 0:01:22.6]}
25. Nd3 {[%clk 0:02:30.5]} 25... Qc8 {[%clk 0:01:20.6]} 26. Rae1 {[%clk
0:02:29.7]} 26... Qd7 {[%clk 0:01:17.5]} 27. Qf3 {[%clk 0:02:28.7]} 27... Qc8
{[%clk 0:01:16.1]} 28. Re2 {[%clk 0:02:24.9]} 28... Qd7 {[%clk 0:01:15.6]} 29.
g4 {[%clk 0:02:25.3]} 29... Qc8 {[%clk 0:01:10.5]} 30. Kg3 {[%clk 0:02:22.8]}
30... Rd7 {[%clk 0:01:08.7]} 31. h4 {[%clk 0:02:22.3]} 31... Qd8 {[%clk
0:01:08.8]} 32. Rh1 {[%clk 0:02:21.5]} 32... f5 {[%clk 0:00:57.8]} 33. exf6
{[%clk 0:02:19.2]} 33... Bxf6 {[%clk 0:00:57.3]} 34. g5 {[%clk 0:02:19.5]} 34...
Be7 {[%clk 0:00:52.9]} 35. Ne5 {[%clk 0:02:17.9]} 35... Rdb7 {[%clk 0:00:50.7]}
36. Qh5 {[%clk 0:02:13.3]} 36... Bf8 {[%clk 0:00:46.2]} 37. Qg6 {[%clk
0:02:09.6]} 37... d3 {[%clk 0:00:35.1]} 38. Qxd3 {[%clk 0:02:07.1]} 38... Rd6
{[%clk 0:00:33.5]} 39. Qf3 {[%clk 0:02:05.6]} 39... Re7 {[%clk 0:00:28.8]} 40.
Qe4 {[%clk 0:01:59.7]} 40... Rd2 {[%clk 0:00:27.1]} 41. Kf3 {[%clk 0:01:58.9]}
41... Rxe2 {[%clk 0:00:26.4]} 42. Kxe2 {[%clk 0:01:59.1]} 42... h5 {[%clk
0:00:23.3]} 43. Rd1 {[%clk 0:01:55.9]} 43... Qe8 {[%clk 0:00:23.2]} 44. Qg6
{[%clk 0:01:52.2]} 44... Qxg6 {[%clk 0:00:20.9]} 45. Nxg6 {[%clk 0:01:51.9]}
45... Re8 {[%clk 0:00:21.2]} 46. Rd7 {[%clk 0:01:50.9]} 46... Nb4 {[%clk
0:00:19.9]} 47. Bxb4 {[%clk 0:01:50.5]} 47... cxb4 {[%clk 0:00:20.8]} 48. Nxf8
{[%clk 0:01:48.5]} 48... Kxf8 {[%clk 0:00:20.9]} 49. Ke3 {[%clk 0:01:47.9]}
49... e5 {[%clk 0:00:19.1]} 50. f5 {[%clk 0:01:48]} 50... e4 {[%clk 0:00:19.4]}
51. Rd5 {[%clk 0:01:47.4]} 51... Kf7 {[%clk 0:00:18.8]} 52. Rxa5 {[%clk
0:01:47.5]} 52... Rd8 {[%clk 0:00:18.8]} 53. Rd5 {[%clk 0:01:47.4]} 53... Re8
{[%clk 0:00:18.2]} 54. a5 {[%clk 0:01:47.8]} 54... g6 {[%clk 0:00:17.7]} 55. f6
{[%clk 0:01:46.5]} 55... Ke6 {[%clk 0:00:18]} 56. a6 {[%clk 0:01:46.2]} 56...
Ra8 {[%clk 0:00:17.5]} 57. Ra5 {[%clk 0:01:46.3]} 57... Ra7 {[%clk 0:00:16.5]}
58. Kxe4 {[%clk 0:01:46.2]} 58... Kd6 {[%clk 0:00:16]} 59. Kd4 {[%clk
0:01:44.3]} 59... Kc6 {[%clk 0:00:16.1]} 60. c5 {[%clk 0:01:44.6]} 60... Rd7+
{[%clk 0:00:14.6]} 61. Kc4 {[%clk 0:01:44.9]} 61... Ra7 {[%clk 0:00:13.2]} 62.
Kxb4 {[%clk 0:01:44.7]} 62... Rd7 {[%clk 0:00:12.3]} 63. a7 {[%clk 0:01:43.6]}
63... Rxa7 {[%clk 0:00:11.3]} 64. Rxa7 {[%clk 0:01:42.6]} 64... Kd5 {[%clk
0:00:11.3]} 65. f7 {[%clk 0:01:42.8]} 1-0

[Event "*** SCC Grand Prix: Titled Tuesday Blitz"]
[Site "Chess.com"]
[Date "2020.07.14"]
[Round "2"]
[White "MarceloPlaya"]
[Black "Rish_97"]
[Result "0-1"]
[WhiteElo "2310"]
[BlackElo "2678"]
[TimeControl "180+1"]
[EndTime "10:17:29 PDT"]
[Termination "Rish_97 won on time"]

1. e4 {[%clk 0:03:00.9]} 1... e5 {[%clk 0:02:56.7]} 2. Nf3 {[%clk 0:03:00.2]}
2... Nc6 {[%clk 0:02:55.4]} 3. d4 {[%clk 0:02:59.5]} 3... exd4 {[%clk
0:02:54.5]} 4. Bc4 {[%clk 0:02:59.1]} 4... Bc5 {[%clk 0:02:52.5]} 5. Ng5 {[%clk
0:02:58.5]} 5... Nh6 {[%clk 0:02:35]} 6. Nxf7 {[%clk 0:02:57.5]} 6... Nxf7
{[%clk 0:02:35.3]} 7. Bxf7+ {[%clk 0:02:57.2]} 7... Kxf7 {[%clk 0:02:36.2]} 8.
Qh5+ {[%clk 0:02:57.1]} 8... g6 {[%clk 0:02:36.1]} 9. Qxc5 {[%clk 0:02:56.6]}
9... d5 {[%clk 0:02:31.5]} 10. Nd2 {[%clk 0:02:49.7]} 10... Re8 {[%clk
0:02:25.4]} 11. f3 {[%clk 0:02:05.5]} 11... dxe4 {[%clk 0:02:20.1]} 12. O-O
{[%clk 0:01:38]} 12... e3 {[%clk 0:02:11.7]} 13. Ne4 {[%clk 0:01:37.1]} 13...
Re5 {[%clk 0:02:11.1]} 14. Qc4+ {[%clk 0:01:22.2]} 14... Qd5 {[%clk 0:02:10.7]}
15. Qe2 {[%clk 0:01:18.6]} 15... Bf5 {[%clk 0:02:10]} 16. c3 {[%clk 0:01:15.7]}
16... Qb5 {[%clk 0:01:29.2]} 17. Qxb5 {[%clk 0:01:01.6]} 17... Rxb5 {[%clk
0:01:30.1]} 18. a4 {[%clk 0:00:50.8]} 18... Rd5 {[%clk 0:01:18.5]} 19. cxd4
{[%clk 0:00:27.1]} 19... e2 {[%clk 0:00:57.9]} 20. Re1 {[%clk 0:00:22.3]} 20...
Nxd4 {[%clk 0:00:58.1]} 21. Nc3 {[%clk 0:00:17.9]} 21... Rd7 {[%clk 0:00:56.5]}
22. Ra2 {[%clk 0:00:07.3]} 22... Re8 {[%clk 0:00:46.2]} 23. b4 {[%clk
0:00:04.6]} 23... Nc2 {[%clk 0:00:43.8]} 24. Rxe2 {[%clk 0:00:03.6]} 24... Rxe2
{[%clk 0:00:30.1]} 25. Nxe2 {[%clk 0:00:03]} 25... Rd1+ {[%clk 0:00:30.7]} 26.
Kf2 {[%clk 0:00:02.3]} 26... Nxb4 {[%clk 0:00:31.2]} 27. Rb2 {[%clk 0:00:01.9]}
27... Nd3+ {[%clk 0:00:31.1]} 0-1

[Event "*** SCC Grand Prix: Titled Tuesday Blitz"]
[Site "Chess.com"]
[Date "2020.07.14"]
[Round "2"]
[White "Hikaru"]
[Black "Zablotsky"]
[Result "1-0"]
[WhiteElo "3208"]
[BlackElo "2584"]
[TimeControl "180+1"]
[EndTime "10:17:33 PDT"]
[Termination "Hikaru won by resignation"]

1. Nf3 {[%clk 0:03:00.9]} 1... d5 {[%clk 0:02:59.6]} 2. e3 {[%clk 0:02:46.7]}
2... e6 {[%clk 0:02:58.6]} 3. b3 {[%clk 0:02:46.4]} 3... Nc6 {[%clk 0:02:56.6]}
4. Bb2 {[%clk 0:02:46.3]} 4... Nf6 {[%clk 0:02:56.4]} 5. d4 {[%clk 0:02:46.2]}
5... Bb4+ {[%clk 0:02:55.7]} 6. c3 {[%clk 0:02:46.3]} 6... Ba5 {[%clk
0:02:55.9]} 7. a3 {[%clk 0:02:45.5]} 7... O-O {[%clk 0:02:55.5]} 8. Be2 {[%clk
0:02:42.9]} 8... Ng4 {[%clk 0:02:55.5]} 9. h3 {[%clk 0:02:40.9]} 9... Nf6 {[%clk
0:02:55.4]} 10. O-O {[%clk 0:02:40]} 10... Ne7 {[%clk 0:02:55.2]} 11. c4 {[%clk
0:02:39.3]} 11... c6 {[%clk 0:02:55.2]} 12. Nbd2 {[%clk 0:02:39.1]} 12... Ne4
{[%clk 0:02:54.9]} 13. Bd3 {[%clk 0:02:37.1]} 13... f5 {[%clk 0:02:47.4]} 14.
Rc1 {[%clk 0:02:35.7]} 14... Ng6 {[%clk 0:02:37.5]} 15. cxd5 {[%clk 0:02:29.5]}
15... Bxd2 {[%clk 0:02:35.7]} 16. Nxd2 {[%clk 0:02:29.5]} 16... exd5 {[%clk
0:02:35.6]} 17. Nf3 {[%clk 0:02:29.3]} 17... f4 {[%clk 0:02:19.2]} 18. Re1
{[%clk 0:02:16.7]} 18... fxe3 {[%clk 0:02:20.1]} 19. Rxe3 {[%clk 0:02:17.5]}
19... Nf4 {[%clk 0:02:21]} 20. Bxe4 {[%clk 0:02:15.1]} 20... dxe4 {[%clk
0:02:21.2]} 21. Rxe4 {[%clk 0:02:16]} 21... Nxh3+ {[%clk 0:02:21]} 22. gxh3
{[%clk 0:02:14]} 22... Qf6 {[%clk 0:02:20.9]} 23. Rc3 {[%clk 0:01:30.2]} 23...
Qg6+ {[%clk 0:02:01.9]} 24. Ng5 {[%clk 0:01:30]} 24... Bf5 {[%clk 0:02:01.4]}
25. Re2 {[%clk 0:01:27.1]} 25... h6 {[%clk 0:02:01.3]} 26. Rg3 {[%clk
0:01:27.8]} 26... hxg5 {[%clk 0:02:01.3]} 27. Bc1 {[%clk 0:01:26.9]} 27... Rae8
{[%clk 0:02:00.8]} 28. Rxg5 {[%clk 0:01:26.2]} 28... Qf7 {[%clk 0:01:34.6]} 29.
d5 {[%clk 0:01:25]} 29... Bg6 {[%clk 0:01:34.3]} 30. Bb2 {[%clk 0:01:16.4]}
30... cxd5 {[%clk 0:01:34.1]} 31. Rd2 {[%clk 0:01:14.4]} 31... Re4 {[%clk
0:01:28.8]} 32. Rg3 {[%clk 0:01:01.4]} 32... Bh5 {[%clk 0:01:21.6]} 33. Qxh5
{[%clk 0:00:41.6]} 33... Re1+ {[%clk 0:01:21]} 34. Kh2 {[%clk 0:00:35.6]} 34...
d4 {[%clk 0:01:20.3]} 35. Qxf7+ {[%clk 0:00:34.8]} 35... Rxf7 {[%clk 0:01:14.2]}
36. Bxd4 {[%clk 0:00:35.7]} 36... a6 {[%clk 0:01:14]} 37. Be3 {[%clk 0:00:35.7]}
37... Ra1 {[%clk 0:01:13.4]} 38. a4 {[%clk 0:00:35.4]} 38... b5 {[%clk
0:01:12.7]} 39. axb5 {[%clk 0:00:35.4]} 39... axb5 {[%clk 0:01:12.9]} 40. Rd8+
{[%clk 0:00:35.4]} 40... Kh7 {[%clk 0:01:12.2]} 41. Rd5 {[%clk 0:00:36.3]} 41...
Rb7 {[%clk 0:01:11.3]} 42. Rh5+ {[%clk 0:00:34.9]} 42... Kg8 {[%clk 0:01:11.3]}
43. Rgg5 {[%clk 0:00:35.7]} 43... Rb1 {[%clk 0:01:10.2]} 44. Rxb5 {[%clk
0:00:35]} 44... Rxb3 {[%clk 0:01:10.1]} 45. Rxb7 {[%clk 0:00:35]} 45... Rxb7
{[%clk 0:01:09.9]} 46. Rg5 {[%clk 0:00:35.9]} 46... Kf7 {[%clk 0:01:09.7]} 47.
Kg3 {[%clk 0:00:36.8]} 47... Rb1 {[%clk 0:01:09.2]} 48. h4 {[%clk 0:00:37.7]}
48... g6 {[%clk 0:01:08.7]} 49. h5 {[%clk 0:00:37.5]} 49... gxh5 {[%clk
0:01:08.7]} 50. Rxh5 {[%clk 0:00:37.6]} 50... Ra1 {[%clk 0:01:07]} 51. Kf4
{[%clk 0:00:37.4]} 51... Ra8 {[%clk 0:01:06.8]} 52. Bd4 {[%clk 0:00:36.1]} 52...
Kg6 {[%clk 0:01:06.6]} 53. Rg5+ {[%clk 0:00:35.8]} 53... Kh6 {[%clk 0:01:06.7]}
54. Bg7+ {[%clk 0:00:36]} 54... Kh7 {[%clk 0:01:06.8]} 55. Be5 {[%clk
0:00:36.9]} 55... Ra2 {[%clk 0:01:06.3]} 56. f3 {[%clk 0:00:33.5]} 56... Ra7
{[%clk 0:01:05.9]} 57. Kf5 {[%clk 0:00:33]} 57... Rf7+ {[%clk 0:01:05.4]} 58.
Bf6 {[%clk 0:00:33.1]} 1-0

[Event "*** SCC Grand Prix: Titled Tuesday Blitz"]
[Site "Chess.com"]
[Date "2020.07.14"]
[Round "2"]
[White "UCantHandleDenker"]
[Black "xberli"]
[Result "1-0"]
[WhiteElo "2533"]
[BlackElo "2287"]
[TimeControl "180+1"]
[EndTime "10:17:33 PDT"]
[Termination "UCantHandleDenker won by resignation"]

1. Nf3 {[%clk 0:02:58.8]} 1... Nf6 {[%clk 0:01:20.4]} 2. g3 {[%clk 0:02:57.2]}
2... g6 {[%clk 0:01:20.6]} 3. Bg2 {[%clk 0:02:56.9]} 3... Bg7 {[%clk 0:01:18.2]}
4. O-O {[%clk 0:02:57.8]} 4... O-O {[%clk 0:01:18.3]} 5. d3 {[%clk 0:02:57.5]}
5... d5 {[%clk 0:01:16.2]} 6. Nbd2 {[%clk 0:02:57]} 6... a5 {[%clk 0:01:15.8]}
7. e4 {[%clk 0:02:55.7]} 7... a4 {[%clk 0:01:15.9]} 8. a3 {[%clk 0:02:54]} 8...
dxe4 {[%clk 0:01:12.4]} 9. dxe4 {[%clk 0:02:52.9]} 9... Nc6 {[%clk 0:01:11.1]}
10. Re1 {[%clk 0:02:44.2]} 10... e5 {[%clk 0:01:10.6]} 11. c3 {[%clk 0:02:37.7]}
11... Be6 {[%clk 0:01:05.7]} 12. Bf1 {[%clk 0:02:33.2]} 12... Qe7 {[%clk
0:00:59.1]} 13. Bc4 {[%clk 0:02:30.6]} 13... Rfd8 {[%clk 0:00:55.2]} 14. Qc2
{[%clk 0:02:28.9]} 14... h6 {[%clk 0:00:50.9]} 15. Bxe6 {[%clk 0:02:22.8]} 15...
Qxe6 {[%clk 0:00:51.8]} 16. Kg2 {[%clk 0:02:21.6]} 16... Kh7 {[%clk 0:00:51]}
17. Nf1 {[%clk 0:02:21.1]} 17... Na5 {[%clk 0:00:46.7]} 18. Be3 {[%clk
0:02:18.3]} 18... Nb3 {[%clk 0:00:33.8]} 19. Rad1 {[%clk 0:02:16.9]} 19... Ng4
{[%clk 0:00:33.6]} 20. h3 {[%clk 0:02:14.7]} 20... Nxe3+ {[%clk 0:00:31.9]} 21.
Nxe3 {[%clk 0:02:14.2]} 21... c6 {[%clk 0:00:32.3]} 22. Nd2 {[%clk 0:02:06.2]}
22... Nxd2 {[%clk 0:00:29.1]} 23. Rxd2 {[%clk 0:02:05.7]} 23... Rxd2 {[%clk
0:00:29.3]} 24. Qxd2 {[%clk 0:02:05.3]} 24... Bf6 {[%clk 0:00:28.9]} 25. h4
{[%clk 0:01:56.9]} 25... Rd8 {[%clk 0:00:27.4]} 26. Qe2 {[%clk 0:01:55.3]} 26...
b5 {[%clk 0:00:22.4]} 27. Rd1 {[%clk 0:01:52.4]} 27... Rd6 {[%clk 0:00:19]} 28.
h5 {[%clk 0:01:49.6]} 28... Qd7 {[%clk 0:00:16.6]} 29. hxg6+ {[%clk 0:01:45.9]}
29... fxg6 {[%clk 0:00:16.7]} 30. Rxd6 {[%clk 0:01:45.8]} 30... Qxd6 {[%clk
0:00:17.6]} 31. Ng4 {[%clk 0:01:21]} 31... Bg5 {[%clk 0:00:14.3]} 32. Qf3 {[%clk
0:01:18.5]} 32... Kg7 {[%clk 0:00:12.7]} 33. Qe2 {[%clk 0:01:08.2]} 33... h5
{[%clk 0:00:11.1]} 34. Ne3 {[%clk 0:01:06.9]} 34... Qe6 {[%clk 0:00:08]} 35. Qd3
{[%clk 0:01:01.9]} 35... h4 {[%clk 0:00:06.1]} 36. Nf1 {[%clk 0:00:46.7]} 36...
hxg3 {[%clk 0:00:05.7]} 37. Nxg3 {[%clk 0:00:45.3]} 37... Be7 {[%clk 0:00:04.7]}
38. Qe3 {[%clk 0:00:43.2]} 38... Bd6 {[%clk 0:00:03.4]} 39. Qg5 {[%clk
0:00:41.5]} 39... Qf6 {[%clk 0:00:03.6]} 40. Nh5+ {[%clk 0:00:40.9]} 1-0

[Event "*** SCC Grand Prix: Titled Tuesday Blitz"]
[Site "Chess.com"]
[Date "2020.07.14"]
[Round "2"]
[White "blitzking1729"]
[Black "Konavets"]
[Result "0-1"]
[WhiteElo "2580"]
[BlackElo "3063"]
[TimeControl "180+1"]
[EndTime "10:17:34 PDT"]
[Termination "Konavets won by resignation"]

1. d4 {[%clk 0:03:00.9]} 1... Nf6 {[%clk 0:02:59.8]} 2. Bg5 {[%clk 0:03:00.3]}
2... Ne4 {[%clk 0:02:58.5]} 3. Bf4 {[%clk 0:02:59.7]} 3... c5 {[%clk 0:02:58.9]}
4. f3 {[%clk 0:02:59.6]} 4... Nf6 {[%clk 0:02:58.7]} 5. d5 {[%clk 0:02:49.3]}
5... Qb6 {[%clk 0:02:57.9]} 6. Bc1 {[%clk 0:02:48.7]} 6... g6 {[%clk 0:02:52.8]}
7. e4 {[%clk 0:02:46.8]} 7... Bg7 {[%clk 0:02:51.2]} 8. a4 {[%clk 0:02:31.9]}
8... O-O {[%clk 0:02:50.2]} 9. Na3 {[%clk 0:02:31.4]} 9... d6 {[%clk 0:02:46.6]}
10. Bd3 {[%clk 0:02:27.4]} 10... e6 {[%clk 0:02:22.4]} 11. c4 {[%clk 0:01:43.3]}
11... Re8 {[%clk 0:02:21]} 12. Ne2 {[%clk 0:01:41.5]} 12... Na6 {[%clk
0:02:21.2]} 13. Nb5 {[%clk 0:01:30.6]} 13... Nb4 {[%clk 0:02:13.4]} 14. a5
{[%clk 0:01:29.5]} 14... Qd8 {[%clk 0:02:12.9]} 15. O-O {[%clk 0:01:28.9]} 15...
exd5 {[%clk 0:02:10]} 16. exd5 {[%clk 0:01:27.1]} 16... Nh5 {[%clk 0:01:52.8]}
17. Nf4 {[%clk 0:01:14.8]} 17... Nf6 {[%clk 0:01:36]} 18. Bb1 {[%clk 0:01:08.4]}
18... a6 {[%clk 0:01:33.6]} 19. Nc3 {[%clk 0:01:08]} 19... Nd7 {[%clk
0:01:33.9]} 20. Nd3 {[%clk 0:00:54.4]} 20... Ne5 {[%clk 0:01:29]} 21. Nxe5
{[%clk 0:00:50.7]} 21... Bxe5 {[%clk 0:01:29.9]} 22. Ne4 {[%clk 0:00:42.1]}
22... Bf5 {[%clk 0:01:29.4]} 23. Bg5 {[%clk 0:00:32.1]} 23... f6 {[%clk
0:01:29.8]} 24. Bc1 {[%clk 0:00:28.4]} 24... h5 {[%clk 0:01:23.7]} 25. Nc3
{[%clk 0:00:28]} 25... Bxb1 {[%clk 0:01:16.6]} 26. Nxb1 {[%clk 0:00:24.1]} 26...
f5 {[%clk 0:01:13.3]} 27. Nc3 {[%clk 0:00:17.2]} 27... Qh4 {[%clk 0:01:12.9]}
28. f4 {[%clk 0:00:17.1]} 28... Bd4+ {[%clk 0:01:10.9]} 29. Kh1 {[%clk
0:00:17.1]} 29... Re7 {[%clk 0:01:11.4]} 30. Ne2 {[%clk 0:00:10.4]} 30... Rae8
{[%clk 0:01:02.8]} 31. Nxd4 {[%clk 0:00:09.9]} 31... Re1 {[%clk 0:00:55.7]} 32.
Nf3 {[%clk 0:00:07.8]} 32... Rxd1 {[%clk 0:00:55.4]} 33. Rxd1 {[%clk 0:00:07.7]}
33... Qf2 {[%clk 0:00:53.5]} 34. Bd2 {[%clk 0:00:06.9]} 34... Re2 {[%clk
0:00:44.3]} 35. Rg1 {[%clk 0:00:04.2]} 35... Rxd2 {[%clk 0:00:43.1]} 36. Raf1
{[%clk 0:00:03.1]} 36... Qe3 {[%clk 0:00:43.1]} 37. Nxd2 {[%clk 0:00:02.1]}
37... Qxd2 {[%clk 0:00:44]} 38. Re1 {[%clk 0:00:02.6]} 38... Nd3 {[%clk
0:00:42.6]} 0-1